[Event "European Women Rapid-ch 2023"]
[Site "Monaco"]
[Date "2024.01.14"]
[Round "10.7"]
[White "Salimova, Nurgyul"]
[Black "Movsesian, Julia"]
[Result "1-0"]
[ECO "E05"]
[WhiteElo "2426"]
[BlackElo "2257"]
[Annotator "RC"]
[PlyCount "115"]
[EventDate "2023.12.19"]
[EventType "swiss"]
[EventCountry "MNC"]
[SourceTitle "playchess.com"]
[Source "ChessBase"]
[SourceQuality "1"]
[TimeControl "900+10"]

1. d4 {[%emt 0:00:02]} d5 {[%emt 0:00:01]} 2. c4 {[%emt 0:00:05]} e6 {[%emt 0:00:02]} 3. Nf3 {[%emt 0:00:03]} Nf6 {[%emt 0:00:07]} 4. g3 {[%emt 0:00:02]} Be7 {[%emt 0:00:23]} 5. Bg2 {[%emt 0:00:01]} O-O {[%emt 0:00:02]} 6. O-O {[%emt 0:00:02]} dxc4 {[%emt 0:00:01]} 7. Qc2 {[%emt 0:00:04]} a6 {[%emt 0:00:02]} 8. a4 {[%emt 0:00:02]} Bd7 {[%emt 0:00:13]} 9. Qxc4 {[%emt 0:00:06]} Bc6 {[%emt 0:00:01]} 10. Rd1 {[%emt 0:00:50]} Bd5 {[%emt 0:00:36]} 11. Qc2 {[%emt 0:01:46]} Nc6 {[%emt 0:00:36]} 12. Nbd2 {[%emt 0:04:52]} Nb4 {[%emt 0:04:52]} 13. Qb1 {[%emt 0:00:19]} Bxf3 {[%emt 0:00:35]} 14. Nxf3 {[%emt 0:00:16]} a5 {[%emt 0:00:03]} 15. Bg5 {[%emt 0:00:25]} h6 {[%emt 0:00:17]} 16. Bxf6 {[%emt 0:00:03]} Bxf6 {[%emt 0:00:01]} 17. Qe4 {[%emt 0:00:45]} c6 {[%emt 0:00:06]} 18. Rac1 {[%emt 0:00:26]} Qe7 {[%emt 0:00:07]} 19. h4 {[%emt 0:00:33]} Rfd8 {[%emt 0:00:07]} 20. e3 {[%emt 0:00:29]} Rd7 {[%emt 0:00:29]} 21. Nd2 {[%emt 0:01:21]} Qd8 {[%emt 0:00:40]} 22. Nb3 {[%emt 0:01:15]} Be7 {[%emt 0:00:43]} 23. Qg4 {[%emt 0:00:20]} Na2 {[%emt 0:01:06]} 24. Ra1 {[%emt 0:00:42]} Nb4 {[%emt 0:00:13]} 25. Qe2 {[%emt 0:00:10]} Qb6 {[%emt 0:00:20]} 26. Nd2 {[%emt 0:00:31]} Qd8 {[%emt 0:00:38]} 27. Nc4 {[%emt 0:00:15]} Bf6 {[%emt 0:00:04]} 28. Be4 {[%emt 0:00:10]} Nd5 {[%emt 0:00:40]} 29. Rac1 {[%emt 0:00:15]} Nb4 {[%emt 0:00:11]} 30. Bb1 {[%emt 0:00:20]} Rc8 {[%emt 0:01:01]} 31. Qf3 {[%emt 0:01:35]} Rd5 {[%emt 0:00:23]} 32. Qe4 {[%emt 0:00:27]} g6 {[%emt 0:03:05]} 33. Qf3 {[%emt 0:00:13]} h5 {[%emt 0:00:20]} 34. Nd2 {[%emt 0:00:29]} Bg7 {[%emt 0:00:29]} 35. Be4 {[%emt 0:00:02]} Rd7 {[%emt 0:00:10]} 36. Nb3 {[%emt 0:00:04]} Qb6 {[%emt 0:00:29]} 37. Nc5 {[%emt 0:00:08]} Rdd8 {[%emt 0:00:01]} 38. Bb1 {[%emt 0:00:59]} e5 {[%emt 0:00:15]} 39. dxe5 {[%emt 0:00:22]} Bxe5 {[%emt 0:00:20]} 40. Nd7 {[%emt 0:00:29]} Qc7 {[%emt 0:00:06]} 41. Nf6+ {[%emt 0:00:22]} Kg7 {[%emt 0:00:42]} 42. Nxh5+ {[%emt 0:00:02]} gxh5 {[%emt 0:00:02]} 43. Qxh5 {[%emt 0:00:02]} Bxb2 {[%emt 0:00:32]} 44. Rc5 {[%emt 0:00:27]} Rxd1+ {[%emt 0:00:32]} 45. Qxd1 {[%emt 0:00:02]} Rh8 {[%emt 0:00:00]} 46. Rg5+ {[%emt 0:00:13]} Kf8 {[%emt 0:00:04]} 47. Qg4 {[%emt 0:00:18]} Nd5 {[%emt 0:00:17]} 48. e4 {[%emt 0:00:10]} Nf6 {[%emt 0:00:06]} 49. Qf3 {[%emt 0:00:05]} Rg8 {[%emt 0:00:30]} 50. Rf5 {[%emt 0:00:17]} Qd6 {[%emt 0:00:12]} 51. Ba2 {[%emt 0:00:05]} Be5 {[%emt 0:00:02]} 52. Qb3 {[%emt 0:00:03]} Rg7 {[%emt 0:00:24]} 53. Rg5 {[%emt 0:00:02]} Qb4 {[%emt 0:00:09]} 54. Rxe5 {[%emt 0:00:16]} Qe1+ {[%emt 0:00:11]} 55. Kg2 {[%emt 0:00:06]} Nxe4 {[%emt 0:00:01]} 56. Qa3+ {[%emt 0:00:22]} Kg8 {[%emt 0:00:19]} 57. Qf3 {[%emt 0:00:14]} Rxg3+ {[%emt 0:00:18]} 58. Qxg3+ {[%emt 0:00:04]} 1-0

[Event "European Women Rapid-ch 2023"]
[Site "Monaco"]
[Date "2024.01.14"]
[Round "10.8"]
[White "Khademalsharieh, Sarasadat"]
[Black "Charkhalashvili, Inga"]
[Result "1-0"]
[ECO "D32"]
[WhiteElo "2486"]
[BlackElo "2239"]
[Annotator "RC"]
[PlyCount "129"]
[EventDate "2023.12.19"]
[EventType "swiss"]
[EventCountry "MNC"]
[SourceTitle "playchess.com"]
[Source "ChessBase"]
[SourceQuality "1"]
[TimeControl "900+10"]

1. Nf3 {[%emt 0:00:03]} Nf6 {[%emt 0:00:02]} 2. c4 {[%emt 0:00:04]} e6 {[%emt 0:00:07]} 3. e3 {[%emt 0:00:04]} d5 {[%emt 0:00:08]} 4. Nc3 {[%emt 0:00:07]} Be7 {[%emt 0:00:11]} 5. b3 {[%emt 0:00:05]} O-O {[%emt 0:00:11]} 6. Bb2 {[%emt 0:00:04]} c5 {[%emt 0:01:08]} 7. cxd5 {[%emt 0:00:10]} exd5 {[%emt 0:01:17]} 8. d4 {[%emt 0:00:06]} Nc6 {[%emt 0:00:25]} 9. Be2 {[%emt 0:00:37]} Bg4 {[%emt 0:02:09]} 10. dxc5 {[%emt 0:01:07]} Bxc5 {[%emt 0:00:04]} 11. O-O {[%emt 0:00:05]} Rc8 {[%emt 0:01:10]} 12. Rc1 {[%emt 0:01:20]} Bd6 {[%emt 0:01:09]} 13. h3 {[%emt 0:00:59]} Bh5 {[%emt 0:01:11]} 14. Nb5 {[%emt 0:01:10]} Bb8 {[%emt 0:00:29]} 15. Nh4 {[%emt 0:03:16]} Bg6 {[%emt 0:01:36]} 16. Nxg6 {[%emt 0:00:15]} hxg6 {[%emt 0:00:02]} 17. Bf3 {[%emt 0:02:04]} a6 {[%emt 0:00:26]} 18. Nd4 {[%emt 0:01:14]} Ne5 {[%emt 0:00:24]} 19. g3 {[%emt 0:01:38]} Rxc1 {[%emt 0:00:33]} 20. Bxc1 {[%emt 0:00:15]} Nxf3+ {[%emt 0:00:14]} 21. Nxf3 {[%emt 0:00:20]} Qd7 {[%emt 0:00:21]} 22. Kg2 {[%emt 0:00:01]} Ne4 {[%emt 0:00:58]} 23. Bb2 {[%emt 0:00:02]} f6 {[%emt 0:00:50]} 24. Nd2 {[%emt 0:00:43]} Qf5 {[%emt 0:00:43]} 25. Nf3 {[%emt 0:00:39]} Rd8 {[%emt 0:00:26]} 26. Qe2 {[%emt 0:00:12]} Qd7 {[%emt 0:00:56]} 27. Nd4 {[%emt 0:00:23]} Kf7 {[%emt 0:01:00]} 28. Qg4 {[%emt 0:00:43]} Qxg4 {[%emt 0:00:08]} 29. hxg4 {[%emt 0:00:02]} Rc8 {[%emt 0:00:00]} 30. Rc1 {[%emt 0:00:47]} Rxc1 {[%emt 0:00:03]} 31. Bxc1 {[%emt 0:00:01]} Nc3 {[%emt 0:00:29]} 32. a4 {[%emt 0:00:01]} Ba7 {[%emt 0:00:09]} 33. Nc2 {[%emt 0:00:03]} Ne4 {[%emt 0:00:40]} 34. Bb2 {[%emt 0:00:52]} a5 {[%emt 0:00:26]} 35. f3 {[%emt 0:00:33]} Nd2 {[%emt 0:00:30]} 36. Bd4 {[%emt 0:00:01]} Bxd4 {[%emt 0:00:19]} 37. Nxd4 {[%emt 0:00:01]} Ke7 {[%emt 0:00:04]} 38. Kf2 {[%emt 0:00:01]} Nb1 {[%emt 0:00:07]} 39. Ke2 {[%emt 0:00:04]} Nc3+ {[%emt 0:00:04]} 40. Kd2 {[%emt 0:00:04]} Na2 {[%emt 0:00:04]} 41. Nb5 {[%emt 0:00:23]} Nb4 {[%emt 0:00:10]} 42. Nd4 {[%emt 0:00:24]} Kd6 {[%emt 0:00:11]} 43. Kc3 {[%emt 0:00:17]} Na2+ {[%emt 0:00:07]} 44. Kd2 {[%emt 0:00:05]} Nb4 {[%emt 0:00:01]} 45. f4 {[%emt 0:00:06]} Nc6 {[%emt 0:00:13]} 46. Nf3 {[%emt 0:00:22]} Kc5 {[%emt 0:00:11]} 47. Kc3 {[%emt 0:00:06]} Ne7 {[%emt 0:00:29]} 48. Ne1 {[%emt 0:00:21]} Nc6 {[%emt 0:00:10]} 49. Nd3+ {[%emt 0:00:06]} Kd6 {[%emt 0:00:01]} 50. b4 {[%emt 0:00:34]} axb4+ {[%emt 0:00:09]} 51. Nxb4 {[%emt 0:00:01]} Na5 {[%emt 0:00:03]} 52. Kd4 {[%emt 0:00:20]} Nb3+ {[%emt 0:00:10]} 53. Kc3 {[%emt 0:00:07]} Na5 {[%emt 0:00:30]} 54. Kd4 {[%emt 0:00:13]} Nb3+ {[%emt 0:00:03]} 55. Kc3 {[%emt 0:00:01]} Na5 {[%emt 0:00:01]} 56. Nc2 {[%emt 0:00:12]} Nc4 {[%emt 0:00:17]} 57. Kb4 {[%emt 0:00:10]} Kc6 {[%emt 0:00:25]} 58. a5 {[%emt 0:00:15]} b6 {[%emt 0:00:15]} 59. a6 {[%emt 0:00:03]} Kc7 {[%emt 0:00:04]} 60. e4 {[%emt 0:00:04]} Nd6 {[%emt 0:00:05]} 61. exd5 {[%emt 0:00:01]} Kb8 {[%emt 0:00:02]} 62. Nd4 {[%emt 0:00:04]} Ne4 {[%emt 0:00:01]} 63. Kb5 {[%emt 0:00:13]} Kc7 {[%emt 0:00:01]} 64. Ne6+ {[%emt 0:00:06]} Kb8 {[%emt 0:00:03]} 65. Kxb6 {[%emt 0:00:03]} 1-0

[Event "European Women Rapid-ch 2023"]
[Site "Monaco"]
[Date "2024.01.14"]
[Round "10.9"]
[White "Batsiashvili, Nino"]
[Black "Garcia Martin, Marta"]
[Result "1-0"]
[ECO "D31"]
[WhiteElo "2451"]
[BlackElo "2342"]
[Annotator "RC"]
[PlyCount "99"]
[EventDate "2023.12.19"]
[EventType "swiss"]
[EventCountry "MNC"]
[SourceTitle "playchess.com"]
[Source "ChessBase"]
[SourceQuality "1"]
[TimeControl "900+10"]

1. d4 {[%emt 0:00:54]} d5 {[%emt 0:00:05]} 2. c4 {[%emt 0:00:02]} e6 {[%emt 0:00:01]} 3. Nc3 {[%emt 0:00:02]} a6 {[%emt 0:00:01]} 4. cxd5 {[%emt 0:00:28]} exd5 {[%emt 0:00:01]} 5. Bf4 {[%emt 0:00:02]} Nf6 {[%emt 0:00:10]} 6. e3 {[%emt 0:00:03]} c5 {[%emt 0:00:36]} 7. Nf3 {[%emt 0:00:13]} c4 {[%emt 0:00:13]} 8. g3 {[%emt 0:01:23]} Be7 {[%emt 0:01:29]} 9. Bg2 {[%emt 0:00:02]} b5 {[%emt 0:01:09]} 10. Bg5 {[%emt 0:01:46]} Bb7 {[%emt 0:00:23]} 11. Ne5 {[%emt 0:00:50]} Ne4 {[%emt 0:04:09]} 12. Bxe7 {[%emt 0:00:53]} Qxe7 {[%emt 0:00:01]} 13. a4 {[%emt 0:02:15]} O-O {[%emt 0:00:46]} 14. O-O {[%emt 0:01:12]} f6 {[%emt 0:00:14]} 15. Nf3 {[%emt 0:00:00]} Nd7 {[%emt 0:01:01]} 16. Nd2 {[%emt 0:02:08]} Nxc3 17. bxc3 {[%emt 0:00:01]} Nb6 {[%emt 0:01:04]} 18. axb5 axb5 {[%emt 0:00:01]} 19. Rxa8 {[%emt 0:00:41]} Rxa8 {[%emt 0:00:03]} 20. Qb1 {[%emt 0:00:01]} Bc6 {[%emt 0:00:13]} 21. Re1 {[%emt 0:01:58]} Na4 {[%emt 0:02:22]} 22. Qc2 {[%emt 0:00:52]} Qa3 {[%emt 0:00:41]} 23. Nb1 {[%emt 0:00:05]} Qd6 {[%emt 0:00:24]} 24. e4 {[%emt 0:01:29]} Re8 {[%emt 0:02:21]} 25. f3 {[%emt 0:00:23]} dxe4 {[%emt 0:00:11]} 26. fxe4 {[%emt 0:00:01]} b4 {[%emt 0:00:08]} 27. Qe2 {[%emt 0:01:12]} Bb5 {[%emt 0:01:08]} 28. e5 {[%emt 0:00:21]} fxe5 29. dxe5 {[%emt 0:00:01]} Qc5+ {[%emt 0:00:12]} 30. Kh1 {[%emt 0:00:03]} Nxc3 {[%emt 0:00:31]} 31. Nxc3 {[%emt 0:00:01]} bxc3 {[%emt 0:00:01]} 32. Qe4 {[%emt 0:00:18]} c2 {[%emt 0:00:29]} 33. e6 {[%emt 0:00:31]} Qf2 {[%emt 0:00:15]} 34. e7 {[%emt 0:00:21]} Kh8 {[%emt 0:00:05]} 35. h4 {[%emt 0:00:14]} Qd2 {[%emt 0:00:07]} 36. Kh2 {[%emt 0:00:13]} c1=Q {[%emt 0:00:04]} 37. Rxc1 {[%emt 0:00:01]} Qxc1 {[%emt 0:00:01]} 38. Qf5 {[%emt 0:00:02]} Qa3 {[%emt 0:00:23]} 39. Be4 {[%emt 0:00:01]} Qb2+ {[%emt 0:00:15]} 40. Kh3 {[%emt 0:00:11]} Bd7 {[%emt 0:00:19]} 41. Qxd7 {[%emt 0:00:01]} Qb8 {[%emt 0:00:09]} 42. Bc6 {[%emt 0:00:12]} Qc8 {[%emt 0:00:12]} 43. Qxc8 {[%emt 0:00:06]} Rxc8 {[%emt 0:00:01]} 44. e8=Q+ {[%emt 0:00:04]} Rxe8 {[%emt 0:00:01]} 45. Bxe8 {[%emt 0:00:00]} c3 {[%emt 0:00:01]} 46. Ba4 {[%emt 0:00:01]} g6 {[%emt 0:00:04]} 47. Kg4 {[%emt 0:00:04]} Kg7 {[%emt 0:00:01]} 48. Kf4 {[%emt 0:00:07]} Kf6 {[%emt 0:00:01]} 49. Bb3 {[%emt 0:00:05]} h6 {[%emt 0:00:03]} 50. Bc2 {[%emt 0:00:04]} 1-0

[Event "European Women Rapid-ch 2023"]
[Site "Monaco"]
[Date "2024.01.14"]
[Round "10.10"]
[White "Gvetadze, Sofio"]
[Black "Zimina, Olga"]
[Result "1-0"]
[ECO "C65"]
[WhiteElo "2298"]
[BlackElo "2291"]
[Annotator "ChessBase"]
[PlyCount "72"]
[EventDate "2023.12.19"]
[EventType "swiss"]
[EventCountry "MNC"]
[SourceTitle "playchess.com"]
[Source "ChessBase"]
[SourceQuality "1"]
[TimeControl "900+10"]

1. e4 {[%emt 0:00:03]} e5 {[%emt 0:00:01]} 2. Nf3 {[%emt 0:00:02]} Nc6 {[%emt 0:00:01]} 3. Bb5 {[%emt 0:00:02]} Nf6 {[%emt 0:00:03]} 4. d3 {[%emt 0:00:06]} Bc5 {[%emt 0:00:04]} 5. O-O {[%emt 0:00:06]} Nd4 {[%emt 0:00:09]} 6. Nxd4 {[%emt 0:00:10]} Bxd4 {[%emt 0:00:02]} 7. Nc3 {[%emt 0:00:30]} O-O {[%emt 0:00:57]} 8. Bg5 {[%emt 0:00:14]} h6 {[%emt 0:00:03]} 9. Bh4 {[%emt 0:00:02]} c6 {[%emt 0:00:13]} 10. Ba4 {[%emt 0:00:29]} d6 {[%emt 0:00:38]} 11. Bb3 {[%emt 0:00:14]} Be6 {[%emt 0:01:22]} 12. Kh1 {[%emt 0:01:43]} g5 {[%emt 0:00:39]} 13. Bg3 {[%emt 0:00:02]} Kg7 {[%emt 0:00:26]} 14. Rb1 {[%emt 0:00:02]} Bb6 {[%emt 0:00:19]} 15. Ne2 {[%emt 0:03:15]} Nh5 {[%emt 0:00:38]} 16. d4 {[%emt 0:00:20]} Nxg3+ {[%emt 0:02:00]} 17. fxg3 {[%emt 0:00:08]} Bg4 {[%emt 0:00:32]} 18. dxe5 {[%emt 0:00:02]} dxe5 {[%emt 0:00:06]} 19. Qe1 {[%emt 0:00:02]} Qe7 {[%emt 0:00:46]} 20. Nc1 {[%emt 0:00:22]} Rad8 {[%emt 0:00:24]} 21. Nd3 {[%emt 0:00:22]} f6 {[%emt 0:00:57]} 22. Bc4 {[%emt 0:03:56]} Rd4 {[%emt 0:00:19]} 23. b3 {[%emt 0:00:07]} Rfd8 {[%emt 0:00:16]} 24. Nb2 {[%emt 0:00:17]} Bc7 {[%emt 0:01:56]} 25. Bd3 {[%emt 0:00:02]} b5 {[%emt 0:00:01]} 26. Nd1 {[%emt 0:00:25]} Bxd1 {[%emt 0:00:11]} 27. Rxd1 {[%emt 0:00:02]} Bb6 {[%emt 0:00:13]} 28. Qe2 {[%emt 0:01:36]} a6 {[%emt 0:00:19]} 29. Qf3 {[%emt 0:00:11]} c5 {[%emt 0:00:23]} 30. a4 {[%emt 0:00:45]} c4 {[%emt 0:00:17]} 31. bxc4 {[%emt 0:00:01]} bxc4 {[%emt 0:00:02]} 32. Be2 {[%emt 0:00:02]} Rxd1 {[%emt 0:00:33]} 33. Bxd1 {[%emt 0:00:01]} Rd2 {[%emt 0:00:34]} 34. Qf5 {[%emt 0:00:16]} Bd8 {[%emt 0:01:52]} 35. Bh5 {[%emt 0:00:05]} Kh8 {[%emt 0:00:21]} 36. Qc8 {[%emt 0:01:40]} Qb4 {[%emt 0:01:11]} 1-0

[Event "European Women Rapid-ch 2023"]
[Site "Monaco"]
[Date "2024.01.14"]
[Round "10.11"]
[White "Daulyte-Cornette, Deimante"]
[Black "Calzetta Ruiz, Monica"]
[Result "1-0"]
[ECO "B36"]
[WhiteElo "2372"]
[BlackElo "2241"]
[Annotator "RC"]
[PlyCount "55"]
[EventDate "2023.12.19"]
[EventType "swiss"]
[EventCountry "MNC"]
[SourceTitle "playchess.com"]
[Source "ChessBase"]
[SourceQuality "1"]
[TimeControl "900+10"]

1. e4 {[%emt 0:00:03]} c5 {[%emt 0:04:02]} 2. Nf3 {[%emt 0:00:08]} g6 {[%emt 0:00:02]} 3. d4 {[%emt 0:00:35]} cxd4 {[%emt 0:00:03]} 4. Nxd4 {[%emt 0:00:03]} Nc6 {[%emt 0:00:06]} 5. c4 {[%emt 0:00:27]} Nf6 {[%emt 0:00:03]} 6. Nc3 {[%emt 0:00:05]} d6 {[%emt 0:00:02]} 7. Be2 {[%emt 0:00:26]} Nxd4 {[%emt 0:00:06]} 8. Qxd4 {[%emt 0:00:03]} Bg7 {[%emt 0:00:02]} 9. Bg5 {[%emt 0:00:12]} O-O {[%emt 0:00:04]} 10. Qd2 {[%emt 0:00:07]} a5 {[%emt 0:00:10]} 11. O-O {[%emt 0:00:24]} a4 {[%emt 0:00:03]} 12. Rad1 {[%emt 0:00:57]} Qa5 {[%emt 0:00:37]} 13. Bxf6 {[%emt 0:00:45]} exf6 {[%emt 0:00:59]} 14. Qxd6 {[%emt 0:01:05]} f5 {[%emt 0:00:02]} 15. Rd5 {[%emt 0:01:05]} Bxc3 {[%emt 0:00:17]} 16. Rxa5 {[%emt 0:00:40]} Bxa5 {[%emt 0:00:02]} 17. Bf3 {[%emt 0:00:32]} Ra6 {[%emt 0:01:54]} 18. Qe5 {[%emt 0:00:17]} Bd8 {[%emt 0:00:55]} 19. exf5 {[%emt 0:00:28]} Bf6 {[%emt 0:00:04]} 20. Qb5 {[%emt 0:00:15]} Bxf5 {[%emt 0:02:40]} 21. Bxb7 {[%emt 0:00:16]} Rd6 {[%emt 0:00:47]} 22. Bd5 {[%emt 0:00:27]} Bd4 {[%emt 0:01:28]} 23. Qxa4 {[%emt 0:01:31]} Rf6 {[%emt 0:00:54]} 24. b4 {[%emt 0:00:39]} Bd3 {[%emt 0:00:03]} 25. Qd1 {[%emt 0:00:02]} Bxf1 {[%emt 0:01:44]} 26. Qxd4 {[%emt 0:00:03]} Ra6 {[%emt 0:00:04]} 27. Kxf1 {[%emt 0:00:05]} Rxa2 {[%emt 0:00:01]} 28. g3 {[%emt 0:00:11]} 1-0

[Event "European Women Rapid-ch 2023"]
[Site "Monaco"]
[Date "2024.01.14"]
[Round "10.12"]
[White "Cramling, Pia"]
[Black "Navrotescu, Andreea"]
[Result "0-1"]
[ECO "D65"]
[WhiteElo "2437"]
[BlackElo "2222"]
[Annotator "RC"]
[PlyCount "116"]
[EventDate "2023.12.19"]
[EventType "swiss"]
[EventCountry "MNC"]
[SourceTitle "playchess.com"]
[Source "ChessBase"]
[SourceQuality "1"]
[TimeControl "900+10"]

1. Nf3 {[%emt 0:00:01]} d5 {[%emt 0:00:01]} 2. d4 {[%emt 0:00:02]} Nf6 {[%emt 0:00:03]} 3. c4 {[%emt 0:00:00]} e6 {[%emt 0:00:02]} 4. Nc3 {[%emt 0:00:14]} Be7 {[%emt 0:00:03]} 5. Bg5 {[%emt 0:00:05]} O-O {[%emt 0:00:15]} 6. e3 {[%emt 0:00:04]} Nbd7 {[%emt 0:00:36]} 7. Rc1 {[%emt 0:00:09]} a6 {[%emt 0:01:35]} 8. cxd5 {[%emt 0:00:28]} exd5 {[%emt 0:00:03]} 9. Bd3 {[%emt 0:00:02]} c6 {[%emt 0:00:32]} 10. Qc2 {[%emt 0:00:11]} Re8 {[%emt 0:00:05]} 11. Bf4 {[%emt 0:00:26]} Nf8 {[%emt 0:00:10]} 12. h3 {[%emt 0:00:08]} Ng6 {[%emt 0:00:17]} 13. Bh2 {[%emt 0:00:05]} Bd6 {[%emt 0:00:03]} 14. Bxd6 {[%emt 0:00:08]} Qxd6 {[%emt 0:00:01]} 15. O-O {[%emt 0:00:04]} Bd7 {[%emt 0:01:46]} 16. Na4 {[%emt 0:01:00]} Ne4 {[%emt 0:00:03]} 17. Nc5 {[%emt 0:03:01]} Nxc5 {[%emt 0:00:32]} 18. Qxc5 {[%emt 0:00:33]} Qf6 {[%emt 0:00:49]} 19. Kh2 {[%emt 0:00:19]} Nh4 {[%emt 0:03:20]} 20. Nxh4 {[%emt 0:00:34]} Qxh4 {[%emt 0:00:03]} 21. Qd6 {[%emt 0:00:17]} Rad8 {[%emt 0:00:06]} 22. Qg3 {[%emt 0:00:12]} Qf6 {[%emt 0:00:26]} 23. b4 {[%emt 0:00:13]} Bf5 {[%emt 0:00:03]} 24. Rfd1 {[%emt 0:01:43]} Be4 {[%emt 0:01:13]} 25. Bxe4 {[%emt 0:00:31]} dxe4 {[%emt 0:00:29]} 26. Rc5 {[%emt 0:00:07]} Qe6 {[%emt 0:00:16]} 27. Rd2 {[%emt 0:00:48]} h6 {[%emt 0:00:06]} 28. Rdc2 {[%emt 0:00:45]} Qd7 {[%emt 0:01:29]} 29. a4 {[%emt 0:00:32]} Re6 {[%emt 0:00:07]} 30. b5 {[%emt 0:00:35]} axb5 {[%emt 0:00:06]} 31. axb5 {[%emt 0:00:01]} Rg6 {[%emt 0:00:33]} 32. Qf4 {[%emt 0:00:10]} Re8 {[%emt 0:02:09]} 33. bxc6 {[%emt 0:01:08]} bxc6 {[%emt 0:00:59]} 34. Rb2 {[%emt 0:00:50]} Rf6 {[%emt 0:00:22]} 35. Qg4 {[%emt 0:00:13]} Qc7+ {[%emt 0:00:32]} 36. Qg3 {[%emt 0:00:09]} Qd7 {[%emt 0:00:27]} 37. Rb8 {[%emt 0:02:34]} Rxb8 {[%emt 0:00:38]} 38. Qxb8+ {[%emt 0:00:02]} Kh7 {[%emt 0:00:01]} 39. Rc2 {[%emt 0:00:54]} Qd5 {[%emt 0:00:06]} 40. Qc7 {[%emt 0:00:24]} Qb3 {[%emt 0:00:21]} 41. Rxc6 {[%emt 0:00:42]} Rxf2 {[%emt 0:00:02]} 42. Qg3 {[%emt 0:00:06]} Re2 {[%emt 0:00:16]} 43. Qg4 {[%emt 0:00:15]} Rxe3 {[%emt 0:00:23]} 44. Qf5+ {[%emt 0:00:55]} g6 {[%emt 0:00:00]} 45. Qd7 {[%emt 0:00:13]} Re2 {[%emt 0:00:44]} 46. Rc7 {[%emt 0:00:16]} Rf2 {[%emt 0:00:15]} 47. Qg4 {[%emt 0:00:28]} e3 {[%emt 0:00:14]} 48. Qg3 {[%emt 0:00:12]} Qe6 {[%emt 0:00:07]} 49. Rc1 {[%emt 0:00:08]} Rd2 {[%emt 0:00:06]} 50. Re1 {[%emt 0:00:06]} e2 {[%emt 0:00:03]} 51. Qf3 {[%emt 0:00:11]} h5 {[%emt 0:00:10]} 52. d5 {[%emt 0:00:06]} Qe5+ {[%emt 0:00:03]} 53. Kh1 {[%emt 0:00:02]} Kg7 {[%emt 0:00:12]} 54. Kg1 {[%emt 0:00:24]} Qd4+ {[%emt 0:00:14]} 55. Kh2 {[%emt 0:00:16]} Qe5+ {[%emt 0:00:19]} 56. Kh1 {[%emt 0:00:01]} h4 {[%emt 0:00:18]} 57. Kg1 {[%emt 0:00:20]} Qg3 {[%emt 0:00:10]} 58. Qf2 {[%emt 0:00:00]} Rd1 {[%emt 0:00:11]} 0-1

[Event "European Women Rapid-ch 2023"]
[Site "Monaco"]
[Date "2024.01.14"]
[Round "10.13"]
[White "Dornbusch, Tatiana"]
[Black "Hunt, Harriet V"]
[Result "1-0"]
[ECO "E15"]
[WhiteElo "2218"]
[BlackElo "2306"]
[Annotator "ChessBase"]
[PlyCount "62"]
[EventDate "2023.12.19"]
[EventType "swiss"]
[EventCountry "MNC"]
[SourceTitle "playchess.com"]
[Source "ChessBase"]
[SourceQuality "1"]
[TimeControl "900+10"]

1. d4 {[%emt 0:00:01]} Nf6 {[%emt 0:00:02]} 2. Nf3 {[%emt 0:00:02]} e6 {[%emt 0:00:02]} 3. c4 {[%emt 0:00:12]} b6 {[%emt 0:00:04]} 4. g3 {[%emt 0:00:03]} Ba6 {[%emt 0:00:03]} 5. Qc2 {[%emt 0:00:28]} c5 {[%emt 0:00:14]} 6. Bg2 {[%emt 0:00:08]} Bb7 {[%emt 0:00:06]} 7. dxc5 {[%emt 0:01:26]} bxc5 {[%emt 0:00:12]} 8. O-O {[%emt 0:00:20]} Be7 {[%emt 0:00:15]} 9. Nc3 {[%emt 0:00:42]} d6 {[%emt 0:00:35]} 10. Rd1 {[%emt 0:00:40]} Qb6 {[%emt 0:00:24]} 11. Bf4 {[%emt 0:01:22]} O-O {[%emt 0:00:45]} 12. Rd2 {[%emt 0:00:27]} h6 {[%emt 0:01:13]} 13. h3 {[%emt 0:00:28]} e5 {[%emt 0:01:00]} 14. Be3 {[%emt 0:00:01]} Re8 {[%emt 0:01:37]} 15. b4 {[%emt 0:01:00]} Nc6 {[%emt 0:02:10]} 16. bxc5 {[%emt 0:00:25]} dxc5 {[%emt 0:00:03]} 17. Rb1 {[%emt 0:00:14]} Qa6 {[%emt 0:00:47]} 18. Rxb7 {[%emt 0:00:34]} Qxb7 {[%emt 0:00:05]} 19. Nxe5 {[%emt 0:00:04]} Rac8 {[%emt 0:00:35]} 20. Bxc6 {[%emt 0:00:53]} Rxc6 {[%emt 0:00:02]} 21. Nxc6 {[%emt 0:00:02]} Qxc6 {[%emt 0:00:01]} 22. Qa4 {[%emt 0:01:25]} Qe6 {[%emt 0:00:40]} 23. Nd5 {[%emt 0:00:20]} Rb8 {[%emt 0:00:40]} 24. Qxa7 {[%emt 0:02:05]} Rb1+ {[%emt 0:01:13]} 25. Kg2 {[%emt 0:01:02]} Bf8 {[%emt 0:01:20]} 26. Qa8 {[%emt 0:02:25]} Nxd5 {[%emt 0:02:10]} 27. Qxd5 {[%emt 0:00:02]} Qb6 {[%emt 0:00:06]} 28. Qd8 {[%emt 0:00:56]} Qa7 {[%emt 0:00:59]} 29. Bf4 {[%emt 0:00:25]} Qb7+ {[%emt 0:00:46]} 30. Rd5 {[%emt 0:00:04]} Rb6 {[%emt 0:00:06]} 31. Kh2 {[%emt 0:00:23]} Rf6 {[%emt 0:00:31]} 1-0